lending/lending_fUSD_20250516
["ID","MTS","AMOUNT","RATE_DAILY","PERIOD"]
[361255548,1747398632675,-500.0,0.00010999,2]
[361255550,1747398632684,-491.00769322,0.00010999,2]
[361255552,1747398632694,-500.0,0.00010999,2]
[361255554,1747398632703,-500.0,0.00010999,2]
[361255556,1747398632712,-500.0,0.00010999,2]
[361255557,1747398632721,-500.0,0.00010999,2]
[361255560,1747398632730,-500.0,0.00010999,2]
[361255561,1747398632739,-500.0,0.00010999,2]
[361255563,1747398632748,-500.0,0.00010999,2]
[361255565,1747398632758,-500.0,0.00010999,2]
[361255567,1747398632767,-500.0,0.00010999,2]
[361255570,1747398632777,-500.0,0.00010999,2]
[361255571,1747398632787,-183.12986941,0.00010999,2]
[361255654,1747398633616,-316.87013059,0.00010999,2]
[361255656,1747398633629,-500.0,0.00010999,2]
[361255658,1747398633640,-500.0,0.00010999,2]
[361255660,1747398633651,-500.0,0.00010999,2]
[361255662,1747398633660,-500.0,0.00010999,2]
[361255664,1747398633669,-500.0,0.00010999,2]
[361255666,1747398633679,-200.0,0.00010999,2]
[361255668,1747398633688,-500.0,0.00010999,2]
[361255670,1747398633698,-500.0,0.00010999,2]
[361255672,1747398633707,-500.0,0.00010999,2]
[361255674,1747398633721,-85.29413849,0.00010999,2]
[361255677,1747398633734,-414.70586151,0.00010999,2]
[361255679,1747398633743,-500.0,0.00010999,2]
[361255681,1747398633753,-500.0,0.00010999,2]
[361255683,1747398633762,-177.62810359,0.00010999,2]
[361255684,1747398633775,-322.37189641,0.00010999,2]
[361255685,1747398633784,-500.0,0.00010999,2]
[361255686,1747398633794,-500.0,0.00010999,2]
[361255687,1747398633806,-500.0,0.00010999,2]
[361255688,1747398633815,-270.17331977,0.00010999,2]
[361255689,1747398633827,-229.82668023,0.00010999,2]
[361255690,1747398633837,-135.3732651,0.00010999,2]
[361255758,1747398637957,-364.6267349,0.00010999,2]
[361255760,1747398637967,-500.0,0.00010999,2]
[361255762,1747398637976,-500.0,0.00010999,2]
[361255764,1747398637986,-500.0,0.00010999,2]
[361255766,1747398637996,-500.0,0.00010999,2]
[361255769,1747398638006,-500.0,0.00010999,2]
[361255770,1747398638015,-500.0,0.00010999,2]
[361255771,1747398638024,-500.0,0.00010999,2]
[361255772,1747398638034,-2904.6355151,0.00011,2]
[361255773,1747398638096,-675.97999662,0.00011,2]
[361255774,1747398638107,-689.32368187,0.00011,2]
[361255775,1747398638220,-358.33485164,0.00011,2]
[361255776,1747398638231,-45016.86311506,0.00011,2]
[361255777,1747398638254,-12252.2296606,0.00011,2]
[361255778,1747398638275,-1434.48411254,0.00011,2]
[361255784,1747398638321,-11568.6154122,0.00011,2]
[361255786,1747398638332,-5447.46272893,0.00011,2]
[361255788,1747398638343,-3765.3254078,0.00011,2]
[361255990,1747398640128,-159569.41734086,0.00011,2]
[361255992,1747398640139,-2248.32558701,0.00011899,2]
[361255994,1747398640148,-608.17007285,0.00011899,2]
[361255996,1747398640157,-180.2085139,0.00011999,2]
[361255998,1747398640167,-190.24904024,0.00011999,2]
[361256000,1747398640176,-184.90857962,0.00011999,2]
[361256002,1747398640186,-187.91523371,0.00011999,2]
[361256004,1747398640195,-148239.8549602,0.00012,2]
[361256006,1747398640205,-420.0,0.00012086,2]
[361256008,1747398640215,-265.0,0.00012086,2]
[361256010,1747398640224,-1680.0,0.00012098,2]
[361256012,1747398640233,-250.0,0.00012099,2]
[361256014,1747398640243,-200.0,0.00012099,2]
[361256016,1747398640252,-250.0,0.000121,2]
[361256018,1747398640261,-2248.32558694,0.00012484,2]
[361256020,1747398640271,-2248.32558694,0.00013068,2]
[361256022,1747398640280,-587.0,0.00013281,2]
[361256024,1747398640290,-1990.0,0.00013308,2]
[361256026,1747398640299,-11741.73877069,0.00013368,2]
[361256028,1747398640310,-805.34125131,0.000135,2]
[361256030,1747398640320,-620.24,0.00013578,2]
[361256032,1747398640329,-2248.32558694,0.00013653,2]
[361256034,1747398640339,-1000.0,0.00013699,2]
[361256036,1747398640349,-255.71210345,0.00013699,2]
[361256038,1747398640358,-500.0,0.00013699,2]
[361256040,1747398640368,-500.0,0.00013699,2]
[361256042,1747398640378,-500.0,0.00013699,2]
[361256044,1747398640387,-500.0,0.00013699,2]
[361256046,1747398640397,-500.0,0.00013699,2]
[361256048,1747398640407,-500.0,0.00013699,2]
[361256050,1747398640416,-500.0,0.00013699,2]
[361256052,1747398640426,-500.0,0.00013699,2]
[361256054,1747398640435,-179.78693452,0.00013699,2]
[361256056,1747398640444,-362.35,0.000137,2]
[361256058,1747398640458,-152.0,0.00013955,2]
[361256060,1747398640468,-608.17007285,0.00014233,2]
[361256062,1747398640478,-2248.32558694,0.00014237,2]
[361256064,1747398640487,-613.0,0.00014594,2]
[361256067,1747398640498,-2248.32558694,0.00014822,2]
[361256069,1747398640508,-250.0,0.00014935,2]
[361256071,1747398640517,-1238.0,0.00014958,2]
[361256073,1747398640528,-886.31,0.00015063,2]
[361256075,1747398640540,-177.69,0.00015144,2]
[361256077,1747398640550,-259.18,0.00015224,2]
[361256079,1747398640562,-250.0,0.0001523,2]
[361256080,1747398640571,-162.53,0.00015309,2]
[361256083,1747398640581,-1000.0,0.00015396,2]
[361256085,1747398640591,-377.79,0.000154,2]
[361256087,1747398640601,-377.79,0.000155,2]
[361256089,1747398640610,-4596.04,0.0001551,2]
[361256091,1747398640620,-200.0,0.0001551,2]
[361256093,1747398640630,-150.0,0.0001552,2]
[361256095,1747398640639,-160.18,0.00015529,2]
[361256097,1747398640649,-538.92,0.00015552,2]
[361256099,1747398640658,-272.02,0.00015552,2]
[361256101,1747398640668,-150.0,0.00015569,7]
[361256103,1747398640677,-377.79,0.000156,2]
[361256105,1747398640687,-190.76,0.00015693,2]
[361256107,1747398640697,-200.0,0.000157,5]
[361256109,1747398640706,-377.79,0.000157,2]
[361256111,1747398640715,-377.79,0.000157,2]
[361256113,1747398640724,-1000.0,0.00015727,2]
[361256115,1747398640734,-207.4,0.00015727,2]
[361256117,1747398640744,-167.08,0.000158,2]
[361256118,1747398640754,-500.0,0.000158,5]
[361256120,1747398640764,-620.24,0.00015841,2]
[361256122,1747398640773,-150.0,0.0001589,2]
[361256124,1747398640783,-800.0,0.000159,5]
[361256127,1747398640795,-352.86,0.00016164,2]
[361256128,1747398640806,-150.0,0.00016164,2]
[361256131,1747398640816,-1037.0,0.00016275,2]
[361256132,1747398640825,-160.52936942,0.00016337,2]
[361256134,1747398640835,-1872.3219,0.00016338,2]
[361256137,1747398640844,-1597.3441,0.00016338,2]
[361256139,1747398640854,-164.88212132,0.00016338,2]
[361256140,1747398640865,-1469.41641977,0.00016338,2]
[361256142,1747398640874,-190.28530212,0.00016338,2]
[361256144,1747398640883,-814.0382,0.00016338,2]
[361256146,1747398640893,-200.0,0.00016411,2]
[361256148,1747398640903,-551.63474627,0.00016427,2]
[361256150,1747398640912,-668.65185757,0.00016427,2]
[361256152,1747398640922,-151.0,0.00016427,2]
[361256155,1747398640931,-362.35,0.00016428,2]
[361256157,1747398640940,-1316.423,0.00016428,2]
[361256159,1747398640950,-1469.41641975,0.00016429,2]
[361256161,1747398640959,-913.77,0.00016434,2]
[361256163,1747398640970,-312.15,0.00016434,2]
[361256165,1747398640980,-238574.53736105,0.00016438,2]
[361256167,1747398640990,-151.0,0.00016438,2]
[361256169,1747398640999,-151.0,0.00016438,2]
[361256171,1747398641008,-151.0,0.00016438,2]
[361256173,1747398641018,-159.638483,0.00016438,2]
[361256175,1747398641027,-223.55844222,0.00016438,2]
[361256177,1747398641036,-169.967061,0.00016438,2]
[361256179,1747398641046,-183.284467,0.00016438,2]
[361256181,1747398641055,-151.0,0.00016438,2]
[361256183,1747398641065,-151.0,0.00016438,2]
[361256185,1747398641076,-1127.23118272,0.00016438,2]
[361256187,1747398641086,-200.0,0.00016438,2]
[361256189,1747398641095,-151.0,0.00016438,2]
[361256191,1747398641105,-400.0,0.00016438,2]
[361256193,1747398641115,-400.0,0.00016438,2]
[361256195,1747398641124,-400.0,0.00016438,2]
[361256197,1747398641134,-1015.35,0.00016438,2]
[361256208,1747398641238,-635.72,0.00016438,2]
[361256209,1747398641249,-400.0,0.00016438,2]
[361256210,1747398641259,-400.0,0.00016438,2]
[361256211,1747398641269,-400.0,0.00016438,2]
[361256212,1747398641278,-400.0,0.00016438,2]
[361256213,1747398641288,-400.0,0.00016438,2]
[361256214,1747398641297,-400.0,0.00016438,2]
[361256215,1747398641308,-400.0,0.00016438,2]
[361256216,1747398641318,-400.0,0.00016438,2]
[361256217,1747398641327,-400.0,0.00016438,2]
[361256218,1747398641336,-400.0,0.00016438,2]
[361256219,1747398641346,-460.75448832,0.00016438,2]
[361256220,1747398641356,-400.0,0.00016438,2]
[361256221,1747398641365,-496.56,0.00016438,2]
[361256222,1747398641374,-400.0,0.00016438,2]
[361256223,1747398641384,-400.0,0.00016438,2]
[361256225,1747398641394,-470.79,0.00016438,2]
[361256227,1747398641403,-687.77,0.00016438,2]
[361256229,1747398641412,-400.0,0.00016438,2]
[361256231,1747398641422,-400.0,0.00016438,2]
[361256233,1747398641431,-550.39,0.00016438,2]
[361256235,1747398641441,-400.0,0.00016438,2]
[361256237,1747398641451,-400.0,0.00016438,2]
[361256239,1747398641466,-400.0,0.00016438,2]
[361256241,1747398641477,-400.0,0.00016438,2]
[361256243,1747398641486,-728.0,0.00016438,2]
[361256245,1747398641497,-400.0,0.00016438,2]
[361256247,1747398641507,-400.0,0.00016438,2]
[361256249,1747398641517,-400.0,0.00016438,2]
[361256251,1747398641526,-400.0,0.00016438,2]
[361256254,1747398641536,-549.65,0.00016438,2]
[361256256,1747398641546,-777.06,0.00016438,2]
[361256258,1747398641556,-400.0,0.00016438,2]
[361256259,1747398641565,-442.4451969,0.00016438,2]
[361256261,1747398641575,-400.0,0.00016438,2]
[361256263,1747398641584,-400.0,0.00016438,2]
[361256265,1747398641597,-400.0,0.00016438,2]
[361256267,1747398641606,-400.0,0.00016438,2]
[361256269,1747398641615,-471.34,0.00016438,2]
[361256271,1747398641625,-400.0,0.00016438,2]
[361256273,1747398641635,-400.0,0.00016438,2]
[361256275,1747398641644,-630.66,0.00016438,2]
[361256277,1747398641653,-400.0,0.00016438,2]
[361256279,1747398641662,-189.4995908,0.00016438,2]
[361256281,1747398641672,-400.0,0.00016438,2]
[361256283,1747398641682,-162.58177883,0.00016438,2]
[361256285,1747398641691,-400.0,0.00016438,2]
[361256287,1747398641701,-412.32,0.00016438,2]
[361256289,1747398641710,-400.0,0.00016438,2]
[361256291,1747398641719,-415.99,0.00016438,2]
[361256293,1747398641729,-400.0,0.00016438,2]
[361256295,1747398641738,-151.0,0.00016438,2]
[361256297,1747398641747,-151.0,0.00016438,2]
[361256299,1747398641756,-151.0,0.00016438,2]
[361256301,1747398641765,-440.27111973,0.00016438,2]
[361256303,1747398641775,-400.0,0.00016438,2]
[361256305,1747398641784,-400.0,0.00016438,2]
[361256307,1747398641793,-151.0,0.00016438,2]
[361256309,1747398641802,-151.0,0.00016438,2]
[361256311,1747398641812,-151.0,0.00016438,2]
[361256313,1747398641821,-400.0,0.00016438,2]
[361256315,1747398641830,-400.0,0.00016438,2]
[361256317,1747398641840,-181.51528948,0.00016438,2]
[361256319,1747398641848,-400.0,0.00016438,2]
[361256321,1747398641858,-400.0,0.00016438,2]
[361256323,1747398641869,-400.0,0.00016438,2]
[361256325,1747398641878,-400.0,0.00016438,2]
[361256327,1747398641887,-415.43929777,0.00016438,2]
[361256328,1747398641897,-611.82,0.00016438,2]
[361256330,1747398641905,-580.65,0.00016438,2]
[361256332,1747398641915,-400.0,0.00016438,2]
[361256334,1747398641925,-1121.5,0.00016438,2]
[361256336,1747398641934,-404.61,0.00016438,2]
[361256338,1747398641943,-400.0,0.00016438,2]
[361256340,1747398641953,-400.0,0.00016438,2]
[361256342,1747398641962,-400.0,0.00016438,2]
[361256344,1747398641971,-400.0,0.00016438,2]
[361256346,1747398641980,-507.00042915,0.00016438,2]
[361256348,1747398641989,-462.29,0.00016438,2]
[361256350,1747398641998,-400.0,0.00016438,2]
[361256352,1747398642007,-611.46,0.00016438,2]
[361256354,1747398642016,-151.0,0.00016438,2]
[361256356,1747398642025,-151.0,0.00016438,2]
[361256358,1747398642034,-151.0,0.00016438,2]
[361256360,1747398642044,-272.71537992,0.00016438,2]
[361256362,1747398642054,-400.0,0.00016438,2]
[361256364,1747398642063,-400.0,0.00016438,2]
[361256366,1747398642072,-448.90206117,0.00016438,2]
[361256368,1747398642081,-405.95,0.00016438,2]
[361256370,1747398642091,-400.0,0.00016438,2]
[361256372,1747398642100,-400.0,0.00016438,2]
[361256374,1747398642109,-400.0,0.00016438,2]
[361256376,1747398642118,-400.0,0.00016438,2]
[361256378,1747398642127,-400.0,0.00016438,2]
[361256380,1747398642136,-400.0,0.00016438,2]
[361256382,1747398642145,-400.0,0.00016438,2]
[361256384,1747398642154,-482.64,0.00016438,2]
[361256386,1747398642163,-400.0,0.00016438,2]
[361256388,1747398642173,-400.0,0.00016438,2]
[361256389,1747398642182,-400.0,0.00016438,2]
[361256391,1747398642191,-400.0,0.00016438,2]
[361256394,1747398642201,-313.90619415,0.00016438,2]
[361256395,1747398642210,-400.0,0.00016438,2]
[361256397,1747398642219,-400.0,0.00016438,2]
[361256399,1747398642228,-400.0,0.00016438,2]
[361256401,1747398642238,-343.57,0.00016438,2]
[361256403,1747398642247,-387.03548803,0.00016438,2]
[361256405,1747398642256,-838.33,0.00016438,2]
[361256407,1747398642265,-400.0,0.00016438,2]
[361256409,1747398642274,-443.22,0.00016438,2]
[361256411,1747398642283,-400.0,0.00016438,2]
[361256413,1747398642292,-400.0,0.00016438,2]
[361256415,1747398642301,-400.0,0.00016438,2]
[361256417,1747398642311,-400.0,0.00016438,2]
[361256419,1747398642321,-400.0,0.00016438,2]
[361256421,1747398642330,-400.0,0.00016438,2]
[361256423,1747398642339,-403.31,0.00016438,2]
[361256425,1747398642349,-400.0,0.00016438,2]
[361256427,1747398642358,-400.0,0.00016438,2]
[361256429,1747398642367,-400.0,0.00016438,2]
[361256431,1747398642377,-400.0,0.00016438,2]
[361256433,1747398642385,-400.0,0.00016438,2]
[361256435,1747398642394,-414.76,0.00016438,2]
[361256437,1747398642404,-400.0,0.00016438,2]
[361256439,1747398642412,-400.0,0.00016438,2]
[361256441,1747398642421,-485.98,0.00016438,2]
[361256443,1747398642431,-400.0,0.00016438,2]
[361256445,1747398642440,-468.46,0.00016438,2]
[361256447,1747398642449,-400.0,0.00016438,2]
[361256449,1747398642463,-400.0,0.00016438,2]
[361256451,1747398642471,-400.0,0.00016438,2]
[361256453,1747398642481,-402.00388112,0.00016438,2]
[361256455,1747398642490,-400.0,0.00016438,2]
[361256457,1747398642501,-400.0,0.00016438,2]
[361256459,1747398642510,-400.0,0.00016438,2]
[361256461,1747398642519,-400.0,0.00016438,2]
[361256463,1747398642530,-400.0,0.00016438,2]
[361256465,1747398642539,-400.0,0.00016438,2]
[361256466,1747398642548,-420.69395005,0.00016438,2]
[361256468,1747398642557,-400.0,0.00016438,2]
[361256470,1747398642567,-400.0,0.00016438,2]
[361256472,1747398642576,-524.1151292,0.00016438,2]
[361256474,1747398642585,-151.0,0.00016438,2]
[361256476,1747398642594,-400.0,0.00016438,2]
[361256478,1747398642603,-400.0,0.00016438,2]
[361256480,1747398642613,-400.0,0.00016438,2]
[361256482,1747398642622,-400.0,0.00016438,2]
[361256484,1747398642631,-439.72,0.00016438,2]
[361256486,1747398642640,-400.0,0.00016438,2]
[361256488,1747398642650,-400.0,0.00016438,2]
[361256490,1747398642659,-400.0,0.00016438,2]
[361256492,1747398642668,-400.0,0.00016438,2]
[361256494,1747398642677,-400.0,0.00016438,2]
[361256496,1747398642686,-828.35,0.00016438,2]
[361256498,1747398642696,-433.46,0.00016438,2]
[361256500,1747398642705,-400.0,0.00016438,2]
[361256502,1747398642714,-403.8,0.00016438,2]
[361256504,1747398642724,-400.0,0.00016438,2]
[361256506,1747398642733,-258.65065304,0.00016438,2]
[361256508,1747398642742,-523.6,0.00016438,2]
[361256510,1747398642751,-318.05926097,0.00016438,2]
[361256528,1747398642890,-81.94073903,0.00016438,2]
[361256530,1747398642900,-400.0,0.00016438,2]
[361256532,1747398642910,-400.0,0.00016438,2]
[361256534,1747398642920,-400.0,0.00016438,2]
[361256536,1747398642929,-103.53919229,0.00016438,2]
[361256699,1747398644522,-2248.32558694,0.00015406,2]
[361256701,1747398644532,-296.46080771,0.00016438,2]
[361256703,1747398644542,-400.0,0.00016438,2]
[361256706,1747398644552,-400.0,0.00016438,2]
[361256707,1747398644562,-400.0,0.00016438,2]
[361256710,1747398644571,-400.0,0.00016438,2]
[361256712,1747398644581,-527.77199535,0.00016438,2]
[361256713,1747398644590,-400.0,0.00016438,2]
[361256716,1747398644600,-400.0,0.00016438,2]
[361256718,1747398644609,-400.0,0.00016438,2]
[361256720,1747398644619,-400.0,0.00016438,2]
[361256722,1747398644628,-400.0,0.00016438,2]
[361256724,1747398644638,-400.0,0.00016438,2]
[361256726,1747398644646,-400.0,0.00016438,2]
[361256728,1747398644656,-400.0,0.00016438,2]
[361256730,1747398644665,-400.0,0.00016438,2]
[361256732,1747398644674,-400.0,0.00016438,2]
[361256734,1747398644692,-400.0,0.00016438,2]
[361256735,1747398644701,-158.843993,0.00016438,2]
[361256738,1747398644711,-400.0,0.00016438,2]
[361256740,1747398644720,-400.0,0.00016438,2]
[361256741,1747398644730,-400.0,0.00016438,2]
[361256743,1747398644739,-400.0,0.00016438,2]
[361256745,1747398644748,-400.0,0.00016438,2]
[361256747,1747398644757,-511.76844177,0.00016438,2]
[361256749,1747398644769,-390.18673457,0.00016438,2]
[361256751,1747398644778,-400.0,0.00016438,2]
[361256753,1747398644787,-400.0,0.00016438,2]
[361256755,1747398644796,-400.0,0.00016438,2]
[361256758,1747398644807,-400.0,0.00016438,2]
[361256759,1747398644817,-159.008908,0.00016438,2]
[361256761,1747398644827,-400.0,0.00016438,2]
[361256763,1747398644836,-400.0,0.00016438,2]
[361256765,1747398644846,-400.0,0.00016438,2]
[361256767,1747398644856,-202.20767618,0.00016438,2]
[361256769,1747398644866,-183.548688,0.00016438,2]
[361256772,1747398644875,-400.0,0.00016438,2]
[361256774,1747398644885,-400.0,0.00016438,2]
[361256775,1747398644894,-336.60545183,0.00016438,2]
[361256778,1747398644905,-506.89,0.00016438,2]
[361256779,1747398644915,-400.0,0.00016438,2]
[361256781,1747398644925,-254.94851181,0.00016438,2]
[361256784,1747398644934,-400.0,0.00016438,2]
[361256785,1747398644944,-409.99676195,0.00016438,2]
[361256787,1747398644953,-748.3,0.00016438,2]
[361256789,1747398644963,-794.3,0.00016438,2]
[361256791,1747398644972,-400.0,0.00016438,2]
[361256794,1747398644982,-1221.62,0.00016438,2]
[361256796,1747398644992,-287.198902,0.00016438,2]
[361256798,1747398645001,-400.0,0.00016438,2]
[361256800,1747398645011,-319.27208758,0.00016438,2]
[361256802,1747398645020,-400.0,0.00016438,2]
[361256804,1747398645029,-400.0,0.00016438,2]
[361256806,1747398645039,-521.96,0.00016438,2]
[361256808,1747398645048,-400.0,0.00016438,2]
[361256810,1747398645057,-774.39,0.00016438,2]
[361256812,1747398645067,-400.0,0.00016438,2]
[361256814,1747398645076,-400.0,0.00016438,2]
[361256816,1747398645085,-400.0,0.00016438,2]
[361256817,1747398645095,-400.0,0.00016438,2]
[361256819,1747398645104,-400.0,0.00016438,2]
[361256821,1747398645113,-279.31770961,0.00016438,2]
[361256823,1747398645122,-400.0,0.00016438,2]
[361256826,1747398645131,-400.0,0.00016438,2]
[361256828,1747398645140,-169.756122,0.00016438,2]
[361256830,1747398645150,-400.0,0.00016438,2]
[361256832,1747398645159,-402.1,0.00016438,2]
[361256833,1747398645168,-400.0,0.00016438,2]
[361256835,1747398645177,-400.0,0.00016438,2]
[361256838,1747398645187,-400.0,0.00016438,2]
[361256840,1747398645196,-400.0,0.00016438,2]
[361256841,1747398645205,-400.0,0.00016438,2]
[361256844,1747398645214,-400.0,0.00016438,2]
[361256845,1747398645224,-400.0,0.00016438,2]
[361256848,1747398645234,-400.0,0.00016438,2]
[361256849,1747398645243,-400.0,0.00016438,2]
[361256851,1747398645254,-400.0,0.00016438,2]
[361256853,1747398645263,-400.0,0.00016438,2]
[361256855,1747398645272,-400.0,0.00016438,2]
[361256857,1747398645282,-725.09,0.00016438,2]
[361256859,1747398645292,-400.0,0.00016438,2]
[361256861,1747398645301,-776.39,0.00016438,2]
[361256863,1747398645311,-515.57666936,0.00016438,2]
[361256865,1747398645321,-400.0,0.00016438,2]
[361256867,1747398645331,-400.0,0.00016438,2]
[361256869,1747398645341,-400.0,0.00016438,2]
[361256872,1747398645351,-400.0,0.00016438,2]
[361256873,1747398645360,-400.0,0.00016438,2]
[361256875,1747398645369,-400.0,0.00016438,2]
[361256877,1747398645379,-400.0,0.00016438,2]
[361256879,1747398645388,-400.0,0.00016438,2]
[361256881,1747398645397,-400.0,0.00016438,2]
[361256883,1747398645406,-536.91,0.00016438,2]
[361256885,1747398645416,-400.0,0.00016438,2]
[361256887,1747398645425,-400.0,0.00016438,2]
[361256889,1747398645434,-400.0,0.00016438,2]
[361256891,1747398645443,-400.0,0.00016438,2]
[361256893,1747398645454,-400.0,0.00016438,2]
[361256895,1747398645465,-500.0,0.00016438,2]
[361256897,1747398645474,-400.0,0.00016438,2]
[361256899,1747398645484,-502.22060306,0.00016438,2]
[361256901,1747398645495,-655.81,0.00016438,2]
[361256903,1747398645504,-400.0,0.00016438,2]
[361256905,1747398645513,-400.0,0.00016438,2]
[361256907,1747398645522,-200.0,0.00016438,2]
[361256909,1747398645533,-400.0,0.00016438,2]
[361256911,1747398645543,-400.0,0.00016438,2]
[361256913,1747398645553,-400.0,0.00016438,2]
[361256915,1747398645562,-400.0,0.00016438,2]
[361256917,1747398645571,-1225.6,0.00016438,2]
[361256919,1747398645580,-400.0,0.00016438,2]
[361256921,1747398645589,-400.0,0.00016438,2]
[361256923,1747398645599,-400.0,0.00016438,2]
[361256925,1747398645607,-400.0,0.00016438,2]
[361256927,1747398645616,-400.0,0.00016438,2]
[361256928,1747398645626,-400.0,0.00016438,2]
[361256930,1747398645635,-409.68492825,0.00016438,2]
[361256932,1747398645644,-1383.6,0.00016438,2]
[361256934,1747398645654,-400.0,0.00016438,2]
[361256936,1747398645663,-512.33764365,0.00016438,2]
[361256939,1747398645673,-400.0,0.00016438,2]
[361256940,1747398645682,-462.1,0.00016438,2]
[361256942,1747398645692,-400.0,0.00016438,2]
[361256944,1747398645701,-400.0,0.00016438,2]
[361256946,1747398645711,-400.0,0.00016438,2]
[361256948,1747398645720,-400.0,0.00016438,2]
[361256950,1747398645729,-400.0,0.00016438,2]
[361256952,1747398645738,-400.0,0.00016438,2]
[361256954,1747398645748,-400.0,0.00016438,2]
[361256956,1747398645757,-562.19,0.00016438,2]
[361256958,1747398645766,-400.0,0.00016438,2]
[361256960,1747398645775,-400.0,0.00016438,2]
[361256962,1747398645784,-400.0,0.00016438,2]
[361256964,1747398645794,-400.0,0.00016438,2]
[361256966,1747398645803,-400.0,0.00016438,2]
[361256969,1747398645813,-400.0,0.00016438,2]
[361256970,1747398645822,-400.0,0.00016438,2]
[361256972,1747398645831,-400.75785196,0.00016438,2]
[361256974,1747398645841,-151.0,0.00016438,2]
[361256976,1747398645850,-400.0,0.00016438,2]
[361256978,1747398645859,-160.999159,0.00016438,2]
[361256980,1747398645869,-400.0,0.00016438,2]
[361256982,1747398645878,-400.0,0.00016438,2]
[361256984,1747398645888,-400.0,0.00016438,2]
[361256986,1747398645896,-1405.19,0.00016438,2]
[361256989,1747398645906,-400.0,0.00016438,2]
[361256991,1747398645916,-585.45,0.00016438,2]
[361256993,1747398645925,-400.0,0.00016438,2]
[361256995,1747398645934,-400.0,0.00016438,2]
[361256997,1747398645944,-400.0,0.00016438,2]
[361256999,1747398645954,-400.0,0.00016438,2]
[361257001,1747398645963,-1706.79,0.00016438,2]
[361257003,1747398645972,-400.0,0.00016438,2]
[361257005,1747398645982,-400.0,0.00016438,2]
[361257007,1747398645991,-400.0,0.00016438,2]
[361257009,1747398646001,-400.0,0.00016438,2]
[361257011,1747398646010,-400.0,0.00016438,2]
[361257013,1747398646019,-614.01,0.00016438,2]
[361257016,1747398646029,-400.0,0.00016438,2]
[361257018,1747398646039,-1323.21,0.00016438,2]
[361257020,1747398646049,-400.0,0.00016438,2]
[361257022,1747398646059,-1816.58,0.00016438,2]
[361257024,1747398646069,-355.35166662,0.00016438,2]
[361257026,1747398646078,-400.0,0.00016438,2]
[361257028,1747398646087,-400.0,0.00016438,2]
[361257030,1747398646096,-500.0,0.00016438,2]
[361257032,1747398646106,-651.54,0.00016438,2]
[361257033,1747398646115,-400.0,0.00016438,2]
[361257035,1747398646124,-400.0,0.00016438,2]
[361257037,1747398646134,-400.0,0.00016438,2]
[361257039,1747398646143,-400.0,0.00016438,2]
[361257041,1747398646153,-400.0,0.00016438,2]
[361257043,1747398646162,-400.0,0.00016438,2]
[361257045,1747398646171,-400.0,0.00016438,2]
[361257047,1747398646181,-400.0,0.00016438,2]
[361257049,1747398646191,-400.0,0.00016438,2]
[361257051,1747398646200,-400.0,0.00016438,2]